bitfinex-derivatives/quotes_SOLF0:USTF0_20250101
["timestamp","ask_amount","ask_price","bid_price","bid_amount"]
[1735766322877,7.41970196,194.77,194.65,4.0804]
[1735766322878,8.17723454,194.7,194.65,4.0804]
[1735766323072,8.17723454,194.68,194.64,1.5138]
[1735766328876,8.17723454,194.7,194.65,2.5739]
[1735766329480,8.17723454,194.7,194.64,1.5138]
[1735766330583,8.17723454,194.7,194.63,10.75133454]
[1735766331477,8.17723454,194.68,194.63,2.5741]
[1735766331681,8.17723454,194.68,194.62,2.5743]
[1735766331879,8.17723454,194.66,194.59,14.33443454]
[1735766332185,8.17723454,194.66,194.59,16.90893454]
[1735766332380,8.17723454,194.66,194.59,13.94893454]
[1735766332577,8.17723454,194.66,194.59,11.37443454]
[1735766332886,8.17723454,194.66,194.6,2.5744]
[1735766333375,8.17723454,194.66,194.61,2.5743]
[1735766335181,8.17723454,194.66,194.53,29.63045653]
[1735766335382,8.17723454,194.64,194.58,8.17723454]
[1735766336184,8.17723454,194.64,194.54,5.7819]
[1735766336380,8.17723454,194.62,194.55,13.07580545]
[1735766336685,8.17723454,194.62,194.55,8.17723454]
[1735766336985,8.17723454,194.62,194.55,2.5752]
[1735766338877,8.17723454,194.6,194.54,11.38393454]
[1735766339283,8.17723454,194.6,194.52,1.4768]
[1735766339284,8.17723454,194.6,194.52,9.65403454]
[1735766339581,2.96,194.63,194.52,11.13723454]
[1735766339582,8.17723454,194.58,194.52,11.13723454]
[1735766340886,8.17723454,194.54,194.49,2.96]
[1735766341478,8.17723454,194.54,194.48,8.17723454]
[1735766342275,8.17723454,194.54,194.47,5.7092]
[1735766342486,8.17723454,194.54,194.47,13.88643454]
[1735766342689,8.17723454,194.54,194.48,2.576]
[1735766342884,8.17723454,194.57,194.49,8.17723454]
[1735766343990,8.17723454,194.57,194.51,2.5757]
[1735766344884,8.17723454,194.55,194.49,2.5759]
[1735766345893,8.17723454,194.55,194.51,2.5757]
[1735766346095,8.17723454,194.57,194.5,8.17723454]
[1735766346288,8.17723454,194.59,194.52,8.17723454]
[1735766346495,8.17723454,194.59,194.53,2.5754]
[1735766347389,8.17723454,194.59,194.52,8.17723454]
[1735766348595,8.17723454,194.59,194.52,10.75283454]
[1735766349990,1.4641,194.62,194.54,10.75243454]
[1735766350189,8.17723454,194.61,194.54,8.17723454]
[1735766350694,8.17723454,194.61,194.55,2.5751]
[1735766351401,8.17723454,194.61,194.54,8.17723454]
[1735766351588,8.17723454,194.61,194.54,10.75253454]
[1735766353294,4.4654,194.65,194.54,10.75253454]
[1735766353498,8.17723454,194.6,194.54,10.75253454]
[1735766354395,8.17723454,194.6,194.54,2.5753]
[1735766355896,8.17723454,194.6,194.53,10.75263454]
[1735766356092,8.17723454,194.6,194.53,2.5754]
[1735766356292,8.17723454,194.6,194.53,10.75263454]
[1735766362597,8.17723454,194.6,194.53,8.17723454]
[1735766363598,8.17723454,194.6,194.53,10.75263454]
[1735766369006,60.31496054,194.66,194.55,8.17723454]
[1735766369203,8.17723454,194.64,194.57,8.17723454]
[1735766370110,8.17723454,194.64,194.58,2.5747]
[1735766371807,63.39906054,194.68,194.59,2.5746]
[1735766372012,8.17723454,194.65,194.59,2.5746]
[1735766373006,8.17723454,194.65,194.58,2.5748]
[1735766374707,8.17723454,194.65,194.59,2.5747]
[1735766378007,77.20504979,194.67,194.59,8.17723454]
[1735766378198,77.20504979,194.67,194.61,8.17723454]
[1735766378404,77.20504979,194.67,194.62,2.5742]
[1735766378808,8.17723454,194.67,194.62,2.5742]
[1735766380007,8.17723454,194.67,194.63,2.5741]
[1735766381706,8.17723454,194.65,194.61,5.5343]
[1735766382009,8.17723454,194.65,194.61,2.96]
[1735766384313,8.17723454,194.65,194.61,5.5344]
[1735766384713,57.35496054,194.72,194.64,8.17723454]
[1735766384915,8.17723454,194.7,194.68,2.5734]
[1735766385116,8.17723454,194.7,194.64,8.17723454]
[1735766385408,8.17723454,194.7,194.66,2.5736]
[1735766386514,8.17723454,194.7,194.64,10.75113454]
[1735766386719,8.17723454,194.7,194.62,8.17723454]
[1735766386921,8.17723454,194.7,194.63,2.96]
[1735766387121,8.17723454,194.7,194.63,5.534]
[1735766388120,8.17723454,194.68,194.63,5.534]
[1735766388315,8.17723454,194.68,194.63,2.96]
[1735766389818,8.17723454,194.68,194.62,10.75143454]
[1735766390024,8.17723454,194.68,194.62,11.13723454]
[1735766390223,8.17723454,194.68,194.63,2.5741]
[1735766394731,8.17723454,194.68,194.64,2.5739]
[1735766395722,8.17723454,194.68,194.62,11.13723454]
[1735766395927,50.297448,194.74,194.65,2.5738]
[1735766395928,8.17723454,194.7,194.65,2.5738]
[1735766396829,8.17723454,194.7,194.62,11.13723454]
[1735766397032,8.17723454,194.7,194.62,2.96]
[1735766397231,8.17723454,194.68,194.62,2.96]
[1735766397726,8.17723454,194.68,194.62,5.5342]
[1735766398927,8.17723454,194.68,194.63,2.574]
[1735766400729,8.17723454,194.68,194.62,2.96]
[1735766401033,8.17723454,194.7,194.63,8.17723454]
[1735766402837,47.337448,194.74,194.65,8.17723454]
[1735766403129,8.17723454,194.73,194.67,8.17723454]
[1735766403330,8.17723454,194.73,194.65,10.75103454]
[1735766403535,8.17723454,194.71,194.65,8.17723454]
[1735766404534,8.17723454,194.71,194.66,2.5736]
[1735766405934,8.17723454,194.73,194.68,2.5733]
[1735766406131,8.17723454,194.75,194.69,8.17723454]
[1735766406527,8.17723454,194.75,194.71,2.573]
[1735766406834,57.35496054,194.8,194.72,2.96]
[1735766407031,8.17723454,194.79,194.72,2.96]
[1735766407431,8.17723454,194.79,194.73,8.17723454]
[1735766407837,8.17723454,194.79,194.74,2.5726]
[1735766408038,8.17723454,194.79,194.73,8.17723454]
[1735766409638,8.17723454,194.79,194.75,2.5725]
[1735766411932,2.35675684,194.82,194.76,2.5723]
[1735766412241,10.53399138,194.82,194.76,2.5723]
[1735766416042,8.17723454,194.8,194.74,10.74973454]
[1735766416242,8.17723454,194.8,194.74,8.17723454]
[1735766417548,8.17723454,194.8,194.75,2.5725]
[1735766419652,8.17723454,194.8,194.76,2.5724]
[1735766420853,8.17723454,194.82,194.76,2.5724]
[1735766421946,1.4976,194.87,194.79,2.572]
[1735766422147,8.17723454,194.84,194.79,2.572]
[1735766429955,53.97206482,194.9,194.8,2.5718]
[1735766430153,8.17723454,194.85,194.8,2.5718]
[1735766430862,8.17723454,194.85,194.79,8.17723454]
[1735766431153,8.17723454,194.86,194.81,2.5717]
[1735766431359,8.17723454,194.86,194.82,2.94]
[1735766431554,58.96796054,194.93,194.82,2.94]
[1735766431760,8.17723454,194.87,194.82,2.94]
[1735766432256,61.90796054,194.93,194.85,8.17723454]
[1735766432257,57.35496054,194.93,194.85,8.17723454]
[1735766432453,65.53219508,194.93,194.87,8.17723454]
[1735766432653,8.17723454,194.93,194.88,2.94]
[1735766434158,57.35496054,194.98,194.81,1.6158]
[1735766434159,8.17723454,194.91,194.81,1.6158]
[1735766434368,8.17723454,194.87,194.8,3.109]
[1735766434667,8.17723454,194.87,194.81,2.94]
[1735766436261,8.17723454,194.87,194.81,5.5118]
[1735766438870,60.29496054,194.94,194.81,5.5118]
[1735766439065,8.17723454,194.86,194.81,5.5118]
[1735766440161,8.17723454,194.86,194.81,2.94]
[1735766440367,8.17723454,194.86,194.82,2.5716]
[1735766441369,8.17723454,194.88,194.83,2.5714]
[1735766443066,8.17723454,194.88,194.81,11.11723454]
[1735766443372,8.17723454,194.9,194.83,8.17723454]
[1735766443563,57.35496054,194.91,194.83,8.17723454]
[1735766443770,8.17723454,194.9,194.84,2.94]
[1735766444073,8.17723454,194.9,194.86,2.5711]
[1735766444671,57.35496054,194.91,194.88,2.5708]
[1735766444874,8.17723454,194.92,194.88,2.5708]
[1735766446076,60.40143596,194.96,194.89,2.94]
[1735766446279,8.17723454,194.93,194.89,2.5707]
[1735766447275,8.17723454,194.93,194.88,5.5109]
[1735766448375,60.40143596,194.96,194.88,2.94]
[1735766448576,8.17723454,194.92,194.89,2.5707]
[1735766450873,8.17723454,194.92,194.88,2.94]
[1735766451078,8.17723454,194.92,194.88,5.5109]
[1735766456682,8.17723454,194.9,194.81,2.94]
[1735766456880,4.45127263,194.95,194.81,2.94]
[1735766457382,57.35496054,194.96,194.89,8.17723454]
[1735766457581,65.53219508,194.96,194.9,2.94]
[1735766457772,65.53219508,194.96,194.93,2.5702]
[1735766457973,57.35496054,194.96,194.91,8.17723454]
[1735766458179,57.35496054,194.97,194.96,2.5698]
[1735766458381,57.35496054,194.97,194.96,5.5298]
[1735766459282,57.35496054,194.97,194.96,2.96]
[1735766459477,8.17723454,195.01,194.96,2.96]
[1735766460985,8.17723454,195.01,194.93,10.74733454]
[1735766461185,8.17723454,195.01,194.94,2.96]
[1735766461787,8.17723454,195.01,194.95,2.5698]
[1735766462287,57.35496054,195.05,194.95,2.5698]
[1735766462486,8.17723454,195.01,194.95,2.5698]
[1735766463686,8.17723454,195.01,194.96,2.5698]
[1735766464078,8.17723454,195.01,194.95,8.17723454]
[1735766464293,8.17723454,195.03,194.97,2.5696]
[1735766465282,57.35496054,195.06,194.95,8.17723454]
[1735766465486,8.17723454,195.05,194.99,2.5693]
[1735766465686,8.17723454,195.05,194.97,8.17723454]
[1735766465687,8.17723454,195.05,195.0,2.96]
[1735766467689,8.17723454,195.03,194.91,3.1287]
[1735766467889,8.17723454,195.01,194.94,10.74733454]
[1735766468693,2.96,195.07,194.94,10.74733454]
[1735766468890,8.17723454,195.01,194.95,2.5699]
[1735766469090,8.17723454,195.02,194.94,8.17723454]
[1735766470290,8.17723454,195.02,194.96,8.17723454]
[1735766470488,8.17723454,195.02,194.97,2.96]
[1735766472283,3.0404,195.09,194.97,2.96]
[1735766472490,57.35496054,195.1,194.97,2.96]
[1735766472693,57.35496054,195.1,195.04,8.17723454]
[1735766472888,57.35496054,195.1,195.05,2.96]
[1735766473085,57.35496054,195.1,195.05,5.5286]
[1735766473286,57.35496054,195.1,195.05,2.96]
[1735766473593,8.17723454,195.09,195.02,2.5689]
[1735766473899,8.17723454,195.07,195.03,2.96]
[1735766474193,23.05521519,195.14,195.02,11.13723454]
[1735766474393,8.17723454,195.09,195.02,11.13723454]
[1735766474785,8.17723454,195.09,195.02,2.96]
[1735766474986,8.17723454,195.09,195.02,11.13723454]
[1735766475394,8.17723454,195.09,195.03,2.5689]
[1735766476595,8.17723454,195.09,195.04,2.5687]
[1735766477095,23.05521519,195.14,195.04,2.5687]
[1735766477296,8.17723454,195.08,195.04,2.5687]
[1735766477495,23.05521519,195.14,195.04,2.5687]
[1735766477696,8.17723454,195.1,195.04,2.5687]
[1735766477896,8.17723454,195.08,195.04,2.5687]
[1735766478197,8.17723454,195.08,195.02,5.5289]
[1735766479201,8.17723454,195.06,195.03,2.96]
[1735766479998,8.17723454,195.06,195.02,2.96]
[1735766480394,8.17723454,195.06,195.02,5.529]
[1735766480695,8.17723454,195.06,195.02,2.96]
[1735766480993,8.17723454,195.04,194.98,2.9864]
[1735766481197,8.17723454,195.04,194.99,2.96]
[1735766481599,8.17723454,195.04,194.99,11.13723454]
[1735766482500,8.17723454,195.04,194.99,13.70653454]
[1735766482700,8.17723454,195.02,194.96,8.17723454]
[1735766483001,8.17723454,195.02,194.97,2.96]
[1735766483199,8.17723454,195.02,194.94,8.17723454]
[1735766483394,23.05521519,195.14,194.99,8.17723454]
[1735766483595,8.17723454,195.07,195.01,8.17723454]
[1735766484093,8.17723454,195.07,195.0,2.96]
[1735766484393,8.17723454,195.07,195.02,2.569]
[1735766485097,8.17723454,195.07,195.03,2.5688]
[1735766486699,8.17723454,195.05,195.0,2.96]
[1735766486896,8.17723454,195.05,194.98,8.17723454]
[1735766487203,8.17723454,195.05,194.98,11.13723454]
[1735766487616,8.17723454,195.05,194.98,8.17723454]
[1735766487904,8.17723454,195.05,194.98,11.19723454]
[1735766488300,8.17723454,195.03,194.98,3.02]
[1735766489301,8.17723454,195.03,194.94,2.57]
[1735766489501,8.17723454,195.01,194.95,3.02]
[1735766491004,8.17723454,194.97,194.88,3.2123]
[1735766491197,8.17723454,194.97,194.89,8.17723454]
[1735766491603,8.17723454,194.97,194.9,2.5705]
[1735766491802,8.17723454,194.97,194.89,8.17723454]
[1735766492403,8.17723454,194.97,194.91,8.17723454]
[1735766492602,1.6227,195.0,194.93,8.17723454]
[1735766492902,8.17723454,195.04,194.97,8.17723454]
[1735766493106,65.53219508,195.06,194.99,8.17723454]
[1735766493405,65.53219508,195.06,195.02,2.569]
[1735766493809,8.17723454,195.06,195.02,2.569]
[1735766494008,8.17723454,195.06,194.99,8.17723454]
[1735766494201,12.65547618,195.08,194.96,15.67547618]
[1735766495101,12.65547618,195.08,194.99,2.5694]
[1735766495402,2.9784,195.12,194.99,12.65547618]
[1735766495605,57.35496054,195.12,194.99,12.65547618]
[1735766496305,57.35496054,195.12,195.03,2.5689]
[1735766496508,12.65547618,195.13,195.03,2.5689]
[1735766497096,12.65547618,195.13,195.02,3.02]
[1735766497702,6.26392868,195.16,195.02,5.5889]
[1735766497897,12.65547618,195.12,195.02,5.5889]
[1735766501603,12.65547618,195.12,195.02,3.02]
[1735766501997,3.02,195.15,195.03,2.5688]
[1735766502198,12.65547618,195.13,195.03,2.5688]
[1735766502397,12.65547618,195.13,195.02,3.02]
[1735766502597,12.65547618,195.13,195.03,1.4789]
[1735766503309,12.65547618,195.13,195.04,2.5687]
[1735766503502,12.65547618,195.13,195.03,1.4789]
[1735766504399,12.65547618,195.13,195.05,2.5685]
[1735766506703,12.65547618,195.1,195.0,3.02]
[1735766507909,12.65547618,195.1,195.03,2.5688]
[1735766508808,12.65547618,195.1,195.03,2.5689]
[1735766509607,12.65547618,195.13,195.04,2.5687]
[1735766509807,12.65547618,195.13,195.05,3.02]
[1735766513910,12.65547618,195.13,195.04,3.02]
[1735766514111,12.65547618,195.13,195.04,5.5887]
[1735766514411,8.09589877,195.1,195.04,5.5887]
[1735766516310,8.09589877,195.1,195.04,3.02]
[1735766516513,8.09589877,195.08,195.04,3.02]
[1735766517723,8.09589877,195.08,194.98,1.4621]
[1735766517724,8.09589877,195.06,195.0,3.08]
[1735766518019,8.09589877,195.08,195.02,8.09589877]
[1735766518618,8.09589877,195.08,195.02,10.66489877]
[1735766522525,8.09589877,195.08,195.03,2.5689]
[1735766525129,8.09589877,195.08,195.02,8.09589877]
[1735766525324,8.09589877,195.08,195.04,2.5687]
[1735766525719,8.09589877,195.1,195.04,8.09589877]
[1735766525925,8.09589877,195.1,195.05,3.08]
[1735766526327,8.09589877,195.1,195.05,5.6486]
[1735766526530,8.09589877,195.12,195.05,3.08]
[1735766527429,8.09589877,195.12,195.06,2.5685]
[1735766528832,8.09589877,195.12,195.05,3.08]
[1735766529128,21.58681519,195.14,195.07,2.5683]
[1735766529330,8.09589877,195.12,195.07,2.5683]
[1735766529724,21.58681519,195.14,195.11,8.09589877]
[1735766530026,21.58681519,195.14,195.13,8.09589877]
[1735766530226,51.80045847,195.15,195.14,2.5674]
[1735766530421,51.80045847,195.15,195.13,8.09589877]
[1735766530832,51.80045847,195.15,195.14,2.5674]
[1735766531328,51.80045847,195.15,195.11,3.08]
[1735766531630,8.09589877,195.2,195.11,3.08]
[1735766531631,8.09589877,195.2,195.13,8.09589877]
[1735766531833,8.09589877,195.18,195.07,1.563]
[1735766532033,8.09589877,195.16,195.08,8.09589877]
[1735766532534,8.09589877,195.16,195.08,10.66409877]
[1735766533125,8.09589877,195.16,195.08,8.09589877]
[1735766534331,8.09589877,195.16,195.08,11.17589877]
[1735766534832,8.09589877,195.16,195.08,13.74409877]
[1735766535031,8.09589877,195.16,195.08,11.17589877]
[1735766535629,8.09589877,195.16,195.1,10.66379877]
[1735766536130,8.09589877,195.18,195.1,10.66379877]
[1735766536525,8.09589877,195.2,195.13,2.5676]
[1735766536729,103.3150287,195.21,195.14,11.17589877]
[1735766536933,103.3150287,195.21,195.16,8.09589877]
[1735766537130,103.3150287,195.21,195.17,2.567]
[1735766537333,103.3150287,195.21,195.2,8.09589877]
[1735766537836,8.09589877,195.28,195.2,8.09589877]
[1735766538033,8.09589877,195.28,195.2,10.66249877]
[1735766538236,4.5808,195.29,195.19,3.08]
[1735766538527,12.62990754,195.28,195.19,3.08]
[1735766539633,12.62990754,195.25,195.12,12.62990754]
[1735766539839,15.70990754,195.25,195.14,3.08]
[1735766540731,12.62990754,195.22,195.09,12.62990754]
[1735766540935,4.7263,195.21,195.1,3.08]
[1735766541632,4.7263,195.21,195.09,12.62990754]
[1735766541830,4.7263,195.21,195.11,3.08]
[1735766542731,4.7263,195.21,195.12,2.5677]
[1735766542931,4.7263,195.21,195.11,3.08]
[1735766543334,4.7263,195.21,195.12,2.5676]
[1735766543527,4.7263,195.21,195.11,15.70990754]
[1735766544533,4.7263,195.21,195.14,12.62990754]
[1735766544737,15.70990754,195.28,195.14,12.62990754]
[1735766544938,4.5953,195.27,195.17,12.62990754]
[1735766545138,4.5953,195.27,195.18,3.08]
[1735766546538,4.5953,195.27,195.19,2.5668]
[1735766547040,4.5953,195.27,195.18,5.6469]
[1735766548838,4.5953,195.27,195.18,3.08]
[1735766550837,17.22520754,195.27,195.16,3.14]
[1735766551839,17.22520754,195.27,195.11,1.593]
[1735766551840,12.62990754,195.24,195.13,3.14]
[1735766552033,15.76990754,195.24,195.13,3.14]
[1735766552238,12.62990754,195.21,195.08,5.7082]
[1735766552542,1.5301,195.2,195.08,3.14]
[1735766552743,1.5301,195.2,195.09,2.5681]
[1735766553043,1.5301,195.2,195.1,12.62990754]
[1735766553640,1.5301,195.2,195.12,2.5677]
[1735766553840,1.5301,195.2,195.13,3.14]
[1735766555439,1.5301,195.2,195.14,2.5674]
[1735766555645,59.75894157,195.27,195.13,15.76990754]
[1735766555844,59.75894157,195.27,195.16,12.62990754]
[1735766556246,59.75894157,195.27,195.19,2.5668]
[1735766556939,2.9851,195.27,195.18,3.14]
[1735766560045,12.62990754,195.25,195.18,3.14]
[1735766561455,12.62990754,195.25,195.14,3.14]
[1735766561653,12.62990754,195.25,195.14,5.7075]
[1735766562154,12.62990754,195.25,195.14,3.14]
[1735766562352,2.9851,195.27,195.14,3.14]
[1735766562554,12.62990754,195.24,195.14,3.14]
[1735766562962,12.62990754,195.24,195.14,5.7074]
[1735766563260,12.62990754,195.24,195.14,3.14]
[1735766563659,15.76990754,195.24,195.14,3.14]
[1735766565660,12.62990754,195.24,195.14,3.14]
[1735766567161,12.62990754,195.24,195.06,4.84985131]
[1735766567162,12.62990754,195.24,195.11,2.5677]
[1735766567471,12.62990754,195.18,195.09,3.14]
[1735766567656,4.6225,195.17,195.09,3.14]
[1735766567862,4.6225,195.17,195.06,2.5685]
[1735766568062,4.6225,195.17,195.07,3.14]
[1735766568262,4.6225,195.17,195.05,2.5686]
[1735766568463,4.6225,195.17,195.06,3.14]
[1735766569267,12.62990754,195.15,195.01,12.62990754]
[1735766569467,3.14,195.14,195.02,3.14]
[1735766569668,3.14,195.14,195.02,5.709]
[1735766569869,12.62990754,195.12,195.02,5.709]
[1735766570064,3.0616,195.17,195.02,3.14]
[1735766570369,12.62990754,195.16,195.02,3.14]
[1735766570569,12.62990754,195.16,195.04,12.62990754]
[1735766570963,12.62990754,195.16,195.06,2.5685]
[1735766571366,12.62990754,195.16,195.04,12.62990754]
[1735766571668,12.62990754,195.16,195.04,15.19860754]
[1735766572965,12.62990754,195.13,195.04,3.14]
[1735766573166,1.5837,195.12,195.04,3.14]
[1735766574566,1.5837,195.12,195.01,15.76990754]
[1735766574768,12.62990754,195.1,195.01,3.14]
[1735766575769,12.62990754,195.1,195.01,5.7092]
[1735766576860,12.62990754,195.1,195.01,3.14]
[1735766577873,12.62990754,195.1,195.01,5.7092]
[1735766578073,12.62990754,195.1,195.01,3.14]
[1735766578470,1.5837,195.12,195.01,15.76990754]
[1735766578867,3.0616,195.17,195.05,2.5686]
[1735766579070,12.62990754,195.16,195.04,12.62990754]
[1735766580068,12.62990754,195.16,195.05,2.5686]
[1735766580272,12.62990754,195.16,195.01,15.76990754]
[1735766580568,12.62990754,195.1,195.01,3.1]
[1735766581367,12.62990754,195.16,195.01,15.72990754]
[1735766581569,12.62990754,195.16,195.04,12.62990754]
[1735766581770,12.62990754,195.16,195.07,2.5683]
[1735766581969,12.62990754,195.16,195.08,3.1]
[1735766584878,12.62990754,195.13,195.05,3.1]
[1735766590280,15.72990754,195.16,195.05,5.6686]
[1735766590581,15.72990754,195.16,195.05,3.1]
[1735766590983,15.72990754,195.16,195.06,2.5684]
[1735766592177,8.09216805,195.13,195.06,10.66056805]
[1735766594187,15.74439003,195.16,195.06,2.5684]
[1735766594589,12.64439003,195.16,195.08,2.5682]
[1735766594781,12.64439003,195.16,195.05,3.1]
[1735766595293,12.64439003,195.16,195.06,12.64439003]
[1735766595486,12.64439003,195.16,195.09,2.568]
[1735766595686,3.0616,195.17,195.06,12.64439003]
[1735766596483,3.0616,195.17,195.1,2.568]
[1735766596685,3.0616,195.17,195.1,3.1]
[1735766598291,3.0616,195.17,195.1,5.6679]
[1735766599791,3.0616,195.17,195.1,3.1]
[1735766600394,3.0616,195.17,195.1,5.668]
[1735766600796,3.0616,195.17,195.1,3.1]
[1735766600993,1.5498,195.17,195.11,2.5678]
[1735766601297,14.23999003,195.22,195.1,3.1]
[1735766601491,14.23999003,195.22,195.13,2.5676]
[1735766602597,14.23999003,195.22,195.15,2.5673]
[1735766602798,14.23999003,195.22,195.15,5.6673]
[1735766603295,1.5956,195.22,195.17,2.5671]
[1735766603491,1.5956,195.22,195.15,3.1]
[1735766604493,1.5956,195.22,195.17,2.5671]
[1735766604690,3.0921,195.23,195.15,3.1]
[1735766604893,14.20759003,195.28,195.15,15.74439003]
[1735766605396,14.20759003,195.28,195.18,2.5668]
[1735766605699,1.5632,195.28,195.15,15.74439003]
[1735766606197,12.64439003,195.26,195.15,15.74439003]
[1735766606397,12.64439003,195.26,195.15,3.1]
[1735766606594,12.64439003,195.26,195.17,2.567]
[1735766607100,12.64439003,195.26,195.15,3.1]
[1735766608502,12.64439003,195.26,195.18,2.5668]
[1735766608803,1.5632,195.28,195.18,2.5668]
[1735766609101,14.20759003,195.28,195.19,3.06]
[1735766610800,12.64439003,195.25,195.19,3.06]
[1735766611499,12.64439003,195.25,195.16,2.5672]
[1735766611695,12.64439003,195.22,195.17,3.06]
[1735766611893,12.64439003,195.22,195.16,3.06]
[1735766613206,12.64439003,195.23,195.16,3.06]
[1735766613508,1.5962,195.22,195.16,3.06]
[1735766613708,3.1748,195.22,195.16,3.06]
[1735766614205,8.08651445,195.2,195.16,3.06]
[1735766615702,8.08651445,195.2,195.15,5.6273]
[1735766618011,8.08651445,195.2,195.15,13.71381445]
[1735766619211,8.08651445,195.23,195.17,2.567]
[1735766619506,8.08651445,195.23,195.17,8.08651445]
[1735766619905,8.08651445,195.23,195.17,10.65341445]
[1735766620108,2.9681,195.27,195.17,8.08651445]
[1735766620306,2.9681,195.27,195.19,8.08651445]
[1735766620513,2.9681,195.27,195.2,3.06]
[1735766620710,8.08651445,195.25,195.2,3.06]
[1735766622216,2.9681,195.27,195.21,8.08651445]
[1735766622414,57.06569126,195.34,195.2,3.06]
[1735766622606,61.63549126,195.34,195.25,8.08651445]
[1735766622812,61.63549126,195.34,195.26,3.06]
[1735766623011,4.5698,195.34,195.26,3.06]
[1735766623216,8.08651445,195.32,195.26,5.6259]
[1735766623521,8.08651445,195.32,195.26,3.06]
[1735766623715,8.08651445,195.32,195.27,2.5657]
[1735766623920,8.08651445,195.32,195.26,3.06]
[1735766624121,8.08651445,195.3,195.26,3.06]
[1735766624318,8.08651445,195.32,195.26,3.06]
[1735766624722,8.08651445,195.3,195.26,3.06]
[1735766625324,8.08651445,195.28,195.16,1.6193]
[1735766625517,8.08651445,195.28,195.21,8.08651445]
[1735766625720,8.08651445,195.28,195.16,1.6193]
[1735766625721,8.08651445,195.3,195.23,8.08651445]
[1735766626023,8.08651445,195.3,195.24,2.5661]
[1735766626217,8.08651445,195.3,195.23,8.08651445]
[1735766626413,52.86746254,195.35,195.25,8.08651445]
[1735766626614,8.08651445,195.38,195.32,8.08651445]
[1735766626817,8.08651445,195.38,195.33,3.06]
[1735766627424,8.08651445,195.4,195.33,5.6249]
[1735766627624,4.7851,195.42,195.33,3.06]
[1735766627818,8.08651445,195.4,195.33,3.06]
[1735766628023,4.7851,195.42,195.33,3.06]
[1735766628220,4.7851,195.42,195.34,10.65121445]
[1735766628528,8.08651445,195.41,195.34,8.08651445]
[1735766628822,8.08651445,195.41,195.35,2.5647]
[1735766629022,4.7851,195.42,195.35,2.5647]
[1735766629223,8.08651445,195.41,195.34,8.08651445]
[1735766629644,4.7851,195.42,195.34,10.65131445]
[1735766629826,8.08651445,195.41,195.34,10.65131445]
[1735766630025,4.7851,195.42,195.34,10.65131445]
[1735766630026,4.7851,195.42,195.36,8.08651445]
[1735766630225,56.90827966,195.54,195.34,12.60542355]
[1735766630423,12.60542355,195.46,195.35,2.5647]
[1735766630722,12.60542355,195.46,195.34,12.60542355]
[1735766631026,4.7309,195.45,195.33,3.06]
[1735766632723,12.60542355,195.43,195.33,3.06]
[1735766633223,12.60542355,195.43,195.34,3.06]
[1735766633423,12.60542355,195.43,195.31,12.60542355]
[1735766633623,12.60542355,195.4,195.32,3.06]
[1735766634429,12.60542355,195.4,195.28,15.17092355]
[1735766634719,12.60542355,195.4,195.29,3.06]
[1735766636225,12.60542355,195.4,195.28,15.17092355]
[1735766636531,12.60542355,195.4,195.3,3.1]
[1735766637530,12.60542355,195.4,195.3,5.6653]
[1735766637724,12.60542355,195.43,195.31,12.60542355]
[1735766638030,12.60542355,195.43,195.33,2.565]
[1735766638730,12.60542355,195.43,195.35,2.5647]
[1735766638931,4.7309,195.45,195.35,5.6647]
[1735766639326,4.7309,195.45,195.35,3.1]
[1735766639532,4.7309,195.45,195.36,2.5645]
[1735766639931,4.7309,195.45,195.36,2.5646]
[1735766640326,4.7309,195.45,195.35,3.1]
[1735766640527,4.7309,195.45,195.37,2.5643]
[1735766640730,4.7309,195.45,195.35,3.1]
[1735766641128,4.7309,195.45,195.36,2.5645]
[1735766641337,4.7309,195.45,195.35,3.1]
[1735766642235,4.7309,195.45,195.36,2.5645]
[1735766642440,4.7309,195.45,195.35,3.1]
[1735766643039,4.7309,195.45,195.38,2.5643]
[1735766644447,4.7309,195.45,195.35,3.1]
[1735766644641,4.7309,195.45,195.39,2.5641]
[1735766645136,4.7309,195.45,195.4,3.1]
[1735766646234,17.33632355,195.45,195.34,2.5648]
[1735766646429,17.33632355,195.45,195.35,3.1]
[1735766646940,17.33632355,195.45,195.36,2.5646]